bitfinex/quotes_ETHUSD_20250814
["timestamp","ask_amount","ask_price","bid_price","bid_amount"]
[1755140662770,0.45315349,4742.5,4739.1,3.228]
[1755140662983,1.20595147,4744.9,4741.8,23.17373629]
[1755140663151,0.75282251,4745.4,4742.1,30.0]
[1755140663350,0.4546,4746.0,4742.0,0.2106]
[1755140663351,0.4546,4746.0,4742.7,30.0]
[1755140663654,0.4546,4746.0,4744.8,0.74429591]
[1755140663855,0.4546,4746.0,4742.8,6.50640494]
[1755140663856,0.4546,4746.6,4745.0,0.74429591]
[1755140664167,0.9159,4746.6,4745.2,0.74429591]
[1755140664353,0.9159,4746.6,4745.3,0.19380494]
[1755140664678,0.9159,4746.6,4745.4,0.19380494]
[1755140664847,0.9159,4746.6,4745.5,0.19380494]
[1755140665044,0.9159,4746.6,4745.6,0.19380494]
[1755140665266,0.4546,4746.6,4745.7,3.337]
[1755140665587,0.4613,4746.5,4745.7,3.337]
[1755140665770,0.4613,4746.5,4745.8,0.1926778]
[1755140666086,0.4613,4746.5,4745.9,0.1926778]
[1755140666380,0.4546,4746.4,4746.0,3.5276778]
[1755140666567,0.4613,4746.3,4746.1,3.5276778]
[1755140666747,0.4613,4746.3,4746.2,0.1926778]
[1755140667071,0.4613,4746.3,4746.2,3.52639844]
[1755140667252,0.4613,4746.3,4746.2,3.334]
[1755140667253,0.9159,4746.3,4746.2,3.334]
[1755140667448,0.9159,4746.3,4745.1,5.055]
[1755140667674,0.9159,4746.2,4745.2,3.52614271]
[1755140667974,0.9159,4746.1,4745.3,0.19214271]
[1755140668165,0.4613,4746.0,4745.2,3.334]
[1755140668477,0.9159,4746.0,4745.1,5.055]
[1755140668988,37.69540643,4747.6,4745.2,3.332]
[1755140668989,0.9159,4745.9,4745.2,3.332]
[1755140669204,0.9159,4745.8,4745.3,3.332]
[1755140669350,37.69540643,4746.9,4745.3,3.332]
[1755140669541,0.9159,4745.7,4743.5,0.3466]
[1755140669748,2.10112725,4746.8,4744.5,5.052]
[1755140670072,0.9159,4745.6,4744.6,3.331]
[1755140670374,0.9159,4745.5,4744.7,3.331]
[1755140670592,0.9159,4745.4,4744.5,5.052]
[1755140670887,2.10112725,4746.8,4744.6,3.33]
[1755140670888,0.9159,4745.3,4744.6,3.33]
[1755140671044,0.9159,4745.2,4744.7,3.33]
[1755140671244,0.9159,4745.1,4744.5,5.052]
[1755140671485,0.9159,4745.0,4744.6,3.33]
[1755140671660,0.9159,4744.9,4744.6,3.33]
[1755140671864,0.9159,4744.8,4744.6,3.33]
[1755140672177,0.4613,4744.7,4744.5,5.052]
[1755140672345,0.4613,4744.7,4742.7,0.3466]
[1755140672346,0.9159,4744.7,4743.6,5.051]
[1755140672548,0.9159,4744.7,4743.7,3.329]
[1755140672859,0.9159,4744.6,4743.7,3.329]
[1755140673056,2.10112725,4746.1,4743.7,3.329]
[1755140673262,0.9159,4744.5,4743.7,3.329]
[1755140673457,1.78897195,4746.0,4743.7,3.329]
[1755140673661,0.9159,4744.4,4743.6,5.051]
[1755140673952,37.69540643,4745.5,4743.6,5.051]
[1755140673953,0.9159,4744.3,4743.6,5.051]
[1755140674158,0.9159,4744.2,4743.7,3.327]
[1755140674549,0.9159,4744.2,4743.6,5.051]
[1755140674550,0.9159,4744.1,4743.8,3.326]
[1755140674746,37.69540643,4745.5,4743.8,3.326]
[1755140674989,3.01702725,4745.4,4743.6,5.051]
[1755140675194,3.17741746,4745.4,4743.7,3.326]
[1755140675368,0.9159,4745.3,4743.7,3.326]
[1755140675984,2.26151746,4745.4,4743.7,3.326]
[1755140675985,0.9159,4745.2,4743.7,3.326]
[1755140676189,2.26151746,4745.4,4743.7,3.326]
[1755140676479,37.69540643,4745.5,4743.6,5.051]
[1755140676480,0.4613,4746.2,4743.8,0.53861538]
[1755140676684,0.4613,4746.2,4743.9,3.88460298]
[1755140676986,0.4613,4746.2,4744.0,0.53860298]
[1755140677184,0.4546,4746.4,4744.1,0.19200298]
[1755140677486,0.4613,4746.7,4744.2,3.53881362]
[1755140677789,0.4546,4746.5,4744.3,0.53841362]
[1755140677950,0.4546,4746.5,4743.6,5.051]
[1755140677951,0.4546,4746.5,4744.4,0.19181362]
[1755140678279,0.4613,4746.4,4744.5,3.88541362]
[1755140678481,0.4546,4746.3,4744.6,0.19181362]
[1755140678694,0.4546,4746.3,4744.5,3.6936]
[1755140678695,0.4546,4746.3,4744.7,0.19181362]
[1755140678854,0.4546,4746.3,4744.8,0.19181362]
[1755140679055,0.4546,4746.3,4744.9,0.19181362]
[1755140679259,0.4546,4746.3,4745.0,0.19181362]
[1755140679487,0.4546,4746.3,4745.1,0.19181362]
[1755140679689,0.4546,4746.3,4745.2,0.19181362]
[1755140679855,0.4546,4746.9,4745.3,3.88341362]
[1755140680055,0.4546,4746.9,4745.4,3.53681362]
[1755140680261,0.4546,4746.9,4745.4,3.345]
[1755140680476,0.4546,4747.3,4745.5,0.5383269]
[1755140680677,0.4546,4747.3,4745.6,0.1917269]
[1755140680891,0.4546,4747.3,4745.5,0.3466]
[1755140681088,0.4546,4747.3,4745.6,0.19170758]
[1755140681267,0.4546,4747.3,4745.5,0.3466]
[1755140681474,0.4546,4747.3,4745.6,0.1916977]
[1755140681673,0.4546,4747.3,4745.5,0.3466]
[1755140681875,0.4546,4747.3,4745.6,3.345]
[1755140682897,0.4546,4747.3,4745.7,0.19162856]
[1755140683071,0.4546,4747.3,4745.8,5.24162856]
[1755140683390,0.4546,4747.3,4745.9,0.19162856]
[1755140683596,0.4546,4747.3,4746.0,0.19162856]
[1755140683775,0.4546,4747.3,4746.1,0.19162856]
[1755140683975,0.4613,4747.2,4746.2,0.19162856]
[1755140684178,0.4613,4747.2,4746.3,0.19162856]
[1755140684364,0.4613,4747.2,4746.4,0.19162856]
[1755140684570,0.4546,4747.1,4746.5,3.339]
[1755140684882,0.4613,4747.0,4746.5,3.339]
[1755140685191,0.4546,4746.9,4746.5,3.339]
[1755140685394,0.4613,4746.8,4746.6,3.339]
[1755140685593,2.10112725,4748.5,4745.8,5.05]
[1755140685901,2.10112725,4748.4,4745.9,3.5298922]
[1755140686090,2.10112725,4748.6,4746.0,0.1918922]
[1755140686395,0.9159,4748.4,4746.1,0.1918922]
[1755140686695,0.9159,4748.4,4746.2,0.1918922]
[1755140686865,0.9159,4748.3,4746.3,0.1918922]
[1755140687067,0.9159,4748.2,4746.4,0.1918922]
[1755140687268,0.9159,4748.1,4746.5,0.1918922]
[1755140687520,0.23622435,4748.5,4746.6,0.1918922]
[1755140687521,0.9159,4748.0,4746.6,0.1918922]
[1755140687803,0.23622435,4748.5,4745.9,3.6846]
[1755140687804,0.9159,4747.9,4746.7,3.336]
[1755140687992,0.9159,4747.8,4746.7,3.336]
[1755140688181,0.9159,4747.7,4746.7,3.336]
[1755140688684,0.4613,4747.6,4746.7,3.336]
[1755140688881,0.9159,4747.6,4746.7,3.336]
[1755140689199,14.5,4747.2,4746.7,3.336]
[1755140689706,0.9159,4747.1,4746.7,3.336]
[1755140689876,0.9159,4747.1,4745.8,5.05]
[1755140690211,0.9159,4747.0,4745.9,3.52443521]
[1755140690507,0.9159,4747.0,4746.0,3.52443521]
[1755140690699,1.68659,4746.9,4746.1,0.19243521]
[1755140690998,0.9159,4746.8,4745.1,5.049]
[1755140691199,0.9159,4746.8,4745.2,8.57272768]
[1755140691391,37.69540643,4747.6,4745.3,8.57872768]
[1755140691576,14.5,4746.2,4745.4,0.19272768]
[1755140691776,14.5,4746.2,4745.3,8.386]
[1755140694211,0.4385,4747.1,4745.4,0.3466]
[1755140694568,14.5,4747.0,4745.4,0.3466]
[1755140694985,0.4888,4746.9,4745.4,0.3466]
[1755140695191,0.9273,4746.9,4745.4,0.3466]
[1755140695706,14.5,4746.8,4745.5,3.333]
[1755140696080,0.9273,4746.7,4745.6,3.332]
[1755140696475,0.9273,4746.6,4745.6,3.332]
[1755140696675,14.5,4746.5,4745.6,3.332]
[1755140697584,0.9273,4746.4,4745.7,3.331]
[1755140697987,0.9273,4746.3,4745.3,5.049]
[1755140698194,14.5,4746.2,4745.4,3.33]
[1755140699514,0.4888,4746.8,4745.4,3.6766]
[1755140700208,14.5,4746.7,4745.4,3.6766]
[1755140700411,14.5,4746.7,4745.3,5.049]
[1755140700412,0.4385,4746.6,4745.3,5.049]
[1755140700622,0.9273,4746.6,4745.3,5.049]
[1755140700832,0.9273,4746.6,4745.4,3.328]
[1755140700996,14.5,4745.9,4745.4,3.328]
[1755140701333,0.9273,4745.8,4745.4,3.328]
[1755140701533,0.4385,4746.4,4745.4,3.328]
[1755140701684,0.4888,4745.8,4745.3,5.049]
[1755140701889,15.4273,4745.7,4745.4,3.328]
[1755140702119,14.9385,4745.7,4745.4,3.328]
[1755140702311,0.4888,4745.6,4745.4,3.328]
[1755140703034,14.5,4745.5,4745.4,3.328]
[1755140705031,14.5,4745.5,4745.4,3.325]
[1755140705409,14.5,4745.5,4745.4,3.323]
[1755140705720,14.9888,4745.5,4745.3,5.049]
[1755140705933,14.5,4745.5,4745.4,3.323]
[1755140706435,14.5,4745.5,4745.3,5.049]
[1755140706602,14.5,4745.5,4745.4,3.322]
[1755140706807,0.4888,4746.8,4745.4,3.322]
[1755140707122,0.4888,4746.8,4745.4,3.6686]
[1755140707306,14.5,4746.7,4745.4,3.6686]
[1755140707509,14.5,4746.7,4745.4,4.41289591]
[1755140707728,14.5,4746.7,4745.4,0.74429591]
[1755140707929,0.9273,4746.6,4745.5,3.321]
[1755140708641,14.5,4746.5,4745.5,3.321]
[1755140709341,0.9273,4746.4,4745.6,3.318]
[1755140710038,14.5,4746.3,4745.6,3.318]
[1755140711306,0.9273,4746.2,4745.7,3.318]
[1755140711506,0.9273,4746.1,4745.7,3.318]
[1755140711711,0.9273,4746.0,4745.3,5.049]
[1755140711938,15.4273,4745.9,4745.4,3.316]
[1755140712138,14.5,4745.9,4745.4,3.316]
[1755140712448,14.9385,4745.9,4745.4,3.316]
[1755140712656,0.4888,4745.8,4745.5,3.316]
[1755140712947,0.19676263,4745.7,4744.7,0.74429591]
[1755140713117,0.19676263,4745.6,4744.8,0.22073398]
[1755140713324,0.19676263,4745.5,4744.8,8.58473398]
[1755140713509,0.19676263,4745.4,4744.8,8.58473398]
[1755140713711,0.19676263,4745.3,4744.8,8.58473398]
[1755140714023,0.19676263,4745.8,4744.9,1.46779303]
[1755140714320,0.19676263,4745.7,4745.0,0.74429591]
[1755140714521,0.4888,4746.4,4745.0,0.74429591]
[1755140714522,0.19676263,4746.3,4745.0,0.74429591]
[1755140714727,0.19676263,4746.2,4745.1,1.09089591]
[1755140714924,14.5,4746.1,4745.2,3.314]
[1755140715234,0.19677152,4746.0,4745.2,3.314]
[1755140715404,0.19677152,4746.0,4745.2,4.05829591]
[1755140715606,0.19677152,4746.0,4745.3,1.12119303]
[1755140715841,0.19677152,4746.0,4745.3,0.72349712]
[1755140716215,0.19677152,4746.0,4745.3,0.37689712]
[1755140716412,0.19677152,4746.0,4745.2,0.74429591]
[1755140716614,0.19677152,4746.0,4745.3,3.312]
[1755140716939,0.4888,4745.9,4745.0,0.74429591]
[1755140717146,0.4888,4745.9,4745.1,3.312]
[1755140717522,0.4888,4745.9,4745.1,4.05629591]
[1755140717948,0.4888,4745.9,4745.1,3.312]
[1755140718152,0.9273,4745.9,4745.0,0.74429591]
[1755140718317,0.9273,4745.9,4745.2,3.312]
[1755140718519,14.5,4745.8,4745.2,3.312]
[1755140719343,14.5,4745.8,4745.2,4.05629591]
[1755140720135,0.4385,4746.2,4745.2,4.05629591]
[1755140720328,0.4888,4746.4,4745.3,0.74429591]
[1755140720926,0.68574154,4746.4,4745.3,0.74429591]
[1755140723657,0.68574154,4746.4,4745.4,5.049]
[1755140724156,0.4888,4746.4,4745.4,5.049]
[1755140724343,14.5,4746.3,4745.4,5.049]
[1755140724547,14.5,4746.3,4745.4,5.79329591]
[1755140724862,14.5,4746.3,4745.5,0.74429591]
[1755140725323,14.5,4746.3,4745.4,5.79329591]
[1755140726770,14.5,4746.3,4745.6,0.74429591]
[1755140727059,14.5,4746.3,4745.7,3.301]
[1755140727226,14.5,4746.3,4745.7,4.04529591]
[1755140727428,14.5,4746.3,4745.7,3.301]
[1755140727829,14.5,4746.3,4745.7,4.04529591]
[1755140728261,14.5,4746.3,4745.9,0.74429591]
[1755140728756,0.9248,4746.9,4745.9,0.74429591]
[1755140728943,0.9248,4746.9,4746.0,0.74429591]
[1755140729256,14.5,4746.8,4746.0,0.74429591]
[1755140729828,0.4611,4747.6,4746.0,1.09089591]
[1755140730059,0.4611,4747.6,4746.5,0.74429591]
[1755140730361,14.5,4747.5,4746.6,3.297]
[1755140732046,2.10475402,4751.2,4746.6,3.297]
[1755140732047,0.9248,4748.9,4746.8,0.74429591]
[1755140732252,0.4611,4748.9,4747.0,0.74429591]
[1755140732425,0.9248,4748.9,4747.1,3.6436]
[1755140732627,0.9248,4748.9,4747.2,0.3466]
[1755140732831,0.4637,4749.3,4747.6,0.74429591]
[1755140733062,0.4637,4749.3,4747.7,9.43589591]
[1755140733231,0.4637,4749.3,4747.9,0.74429591]
[1755140733433,0.4637,4749.3,4748.0,0.3466]
[1755140734324,0.4611,4749.5,4748.0,0.3466]
[1755140734534,0.4637,4749.7,4748.0,0.3466]
[1755140735463,0.4611,4749.9,4748.0,0.3466]
[1755140735957,0.4637,4750.3,4748.0,0.3466]
[1755140736159,0.4611,4750.4,4748.0,1.46304386]
[1755140736329,0.4611,4750.4,4748.0,0.3466]
[1755140736533,0.4611,4750.4,4748.1,0.3466]
[1755140737158,0.9248,4750.7,4748.1,0.3466]
[1755140737330,0.4637,4750.4,4748.1,0.3466]
[1755140737527,0.4637,4750.4,4748.1,1.08667902]
[1755140738089,0.4637,4750.4,4748.2,1.08667902]
[1755140738262,0.4637,4750.4,4748.3,0.3466]
[1755140738770,0.4611,4750.3,4748.4,3.294]
[1755140739067,0.4611,4750.3,4748.5,0.71066]
[1755140739532,0.4611,4750.3,4748.5,0.36406]
[1755140739871,0.4637,4750.2,4748.5,0.36406]
[1755140740167,0.4611,4750.1,4748.6,3.292]
[1755140740366,0.4637,4750.0,4748.7,0.2335711]
[1755140740661,0.4611,4749.9,4748.8,3.292]
[1755140740836,0.4637,4749.8,4748.7,0.2335711]
[1755140741157,0.4637,4749.8,4748.8,3.292]
[1755140741158,0.4611,4749.7,4748.8,3.292]
[1755140741340,0.4637,4749.6,4748.9,3.291]
[1755140741660,0.4637,4749.6,4749.0,3.291]
[1755140741832,0.4637,4749.6,4749.1,3.291]
[1755140742037,0.4611,4749.5,4747.8,0.3466]
[1755140742341,0.4637,4749.4,4747.9,3.29]
[1755140742548,0.4611,4749.3,4747.9,3.29]
[1755140742852,0.4637,4749.2,4747.9,3.29]
[1755140743034,0.4637,4749.2,4748.0,8.336]
[1755140743462,0.4637,4749.2,4748.1,3.289]
[1755140743666,0.4637,4749.2,4748.0,5.046]
[1755140743864,0.4637,4749.2,4748.1,3.289]
[1755140744956,0.4637,4749.7,4748.2,0.3466]
[1755140746172,0.4611,4749.6,4748.3,3.287]
[1755140746538,0.4637,4749.5,4748.3,3.287]
[1755140746760,0.4637,4749.5,4748.0,5.3926]
[1755140746964,0.4637,4749.5,4748.4,3.286]
[1755140747142,0.4611,4749.4,4748.4,3.286]
[1755140747354,0.4637,4749.3,4748.4,3.286]
[1755140747553,0.4611,4749.2,4748.5,3.285]
[1755140747740,0.4611,4749.2,4748.6,0.3285]
[1755140747938,0.4637,4749.1,4748.7,3.285]
[1755140748256,0.9248,4749.0,4748.8,3.285]
[1755140748571,37.58145663,4750.7,4748.0,5.046]
[1755140748747,37.58145663,4750.7,4748.1,3.286]
[1755140748950,3.02592725,4750.6,4748.1,3.286]
[1755140749470,0.9248,4750.5,4748.1,3.286]
[1755140749838,0.9248,4750.4,4748.1,3.286]
[1755140750037,0.9248,4750.3,4748.1,3.286]
[1755140750254,0.9248,4750.2,4748.1,3.286]
[1755140750465,2.10112725,4750.6,4748.1,3.286]
[1755140750466,0.9248,4750.1,4748.1,3.286]
[1755140750670,37.58145663,4751.5,4748.1,3.286]
[1755140750671,0.9248,4750.0,4748.1,3.6326]
[1755140750861,0.9248,4749.9,4748.1,3.6326]
[1755140751168,0.9227,4749.8,4748.1,3.6326]
[1755140751394,0.9227,4749.7,4748.1,3.6326]
[1755140751546,0.9227,4749.6,4748.1,3.6326]
[1755140753244,0.4637,4749.6,4748.1,3.6326]
[1755140753472,0.459,4749.5,4748.1,3.6326]
[1755140754671,0.4637,4749.6,4748.2,0.3466]
[1755140755275,0.459,4749.9,4748.2,0.3466]
[1755140755458,0.4637,4750.0,4748.2,0.3466]
[1755140755659,0.4637,4750.4,4748.2,0.3466]
[1755140756393,0.4637,4750.4,4748.4,0.74007902]
[1755140756569,0.4637,4750.4,4748.5,0.3466]
[1755140756766,0.4637,4750.4,4748.6,0.1086679]
[1755140756982,0.4637,4750.4,4748.7,3.281]
[1755140757169,0.4637,4750.4,4748.8,0.3466]
[1755140758000,0.459,4750.3,4748.6,0.84874692]
[1755140758167,0.4637,4750.2,4748.9,3.28]
[1755140758360,0.4637,4750.2,4749.0,0.33886679]
[1755140758566,0.4637,4750.2,4748.6,0.74007902]
[1755140758567,0.459,4750.1,4749.1,3.279]
[1755140758762,0.459,4750.1,4748.6,0.74007902]
[1755140758763,0.4637,4750.0,4749.2,3.279]
[1755140758963,0.459,4751.5,4749.3,3.279]
[1755140759188,0.9227,4751.4,4749.4,0.3279]
[1755140759393,0.9227,4751.3,4748.7,0.74007902]
[1755140759690,0.9227,4751.2,4748.8,3.279]
[1755140759863,0.9227,4751.1,4748.8,3.6256]
[1755140760063,0.9227,4751.0,4748.8,3.6256]
[1755140760270,0.9227,4750.9,4748.8,3.6256]
[1755140760507,0.9227,4750.8,4748.8,4.36567902]
[1755140760795,0.9227,4750.7,4748.9,3.278]
[1755140760975,37.68624573,4752.0,4748.9,3.278]
[1755140760976,0.9227,4750.6,4749.0,4.29]
[1755140761178,0.9227,4750.5,4749.0,4.29]
[1755140761512,37.68624573,4752.0,4748.9,3.278]
[1755140761513,0.9227,4750.4,4749.1,4.29]
[1755140762692,0.9227,4750.3,4749.1,4.29]
[1755140763004,0.9227,4750.2,4749.2,3.277]
[1755140763172,0.9227,4750.1,4749.2,3.277]
[1755140763898,0.9227,4750.0,4749.3,3.275]
[1755140764064,0.9227,4749.9,4749.3,3.275]
[1755140764269,37.58145663,4751.3,4749.3,3.275]
[1755140764461,0.9227,4749.8,4749.3,3.275]
[1755140764668,0.9227,4749.7,4749.3,3.275]
[1755140764869,0.9227,4749.6,4749.3,3.275]
[1755140765199,0.9227,4749.5,4749.4,5.045]
[1755140765381,0.9227,4749.5,4749.4,8.32]
[1755140766267,0.9227,4749.5,4749.4,5.045]
[1755140766469,0.9227,4749.5,4749.4,8.319]
[1755140768189,0.9227,4749.5,4749.4,8.317]
[1755140772606,0.9227,4749.5,4749.4,5.045]
[1755140772776,0.9227,4749.5,4749.4,8.315]
[1755140776082,0.9227,4749.5,4747.8,0.3466]
[1755140776284,0.9227,4749.4,4747.9,5.045]
[1755140776485,0.45314387,4750.4,4748.0,3.266]
[1755140776684,0.9227,4749.3,4748.0,3.266]
[1755140778314,0.9227,4749.2,4748.1,3.264]
[1755140778483,0.9227,4749.1,4747.9,5.045]
[1755140778686,0.9227,4749.0,4748.2,3.264]
[1755140778873,2.10112725,4749.7,4748.2,3.264]
[1755140779081,3.02382725,4749.7,4748.2,3.264]
[1755140779281,3.02382725,4749.7,4747.9,5.045]
[1755140779282,0.9227,4749.6,4748.3,3.263]
[1755140779499,0.9227,4749.6,4748.4,3.263]
[1755140779500,37.58145663,4749.1,4748.4,3.263]
[1755140779780,3.02382725,4749.0,4748.5,3.263]
[1755140780104,3.02382725,4749.0,4748.6,3.263]
[1755140780315,0.9227,4748.9,4748.7,3.263]
[1755140780498,2.10112725,4748.8,4747.9,5.045]
[1755140780701,2.10112725,4748.8,4748.0,3.263]
[1755140781210,2.10112725,4748.8,4746.6,1.11644386]
[1755140781211,37.58145663,4748.1,4746.6,1.11644386]
[1755140781398,0.4963,4748.0,4746.7,3.263]
[1755140781582,0.4963,4748.0,4746.8,3.263]
[1755140781901,0.4963,4748.0,4746.9,3.27]
[1755140782100,0.4963,4748.0,4747.0,3.27]
[1755140782302,0.4963,4748.0,4747.1,3.27]
[1755140782677,0.4642,4747.9,4747.1,3.27]
[1755140782881,0.4963,4747.8,4747.1,3.27]
[1755140783077,0.4963,4747.8,4746.4,0.3466]
[1755140783314,0.4642,4747.7,4746.5,3.269]
[1755140783515,0.4642,4747.7,4746.1,5.3926]
[1755140783804,0.4963,4747.6,4746.2,3.269]
[1755140784220,0.4642,4747.5,4746.2,3.269]
[1755140784418,0.4642,4747.5,4746.3,3.269]
[1755140784713,0.4963,4747.4,4746.3,3.269]
[1755140784934,0.4642,4747.3,4746.3,3.269]
[1755140785213,0.4963,4747.2,4746.4,5.046]
[1755140785381,0.4642,4747.1,4745.9,5.046]
[1755140785581,0.4963,4747.0,4745.7,5.046]
[1755140785809,0.4642,4746.9,4745.7,5.046]
[1755140786111,0.4963,4746.8,4745.7,5.046]
[1755140786319,2.56532725,4746.7,4745.8,3.27]
[1755140786809,2.10112725,4746.7,4745.8,3.27]
[1755140787024,0.9605,4746.6,4745.8,3.27]
[1755140787189,0.9605,4746.6,4745.9,3.269]
[1755140787384,1.26666272,4746.5,4745.7,5.046]
[1755140787613,1.26666272,4746.5,4745.4,5.047]
[1755140788816,1.26666272,4746.5,4745.5,3.268]
[1755140790625,0.30616272,4746.5,4745.5,3.268]
[1755140790817,0.9605,4746.9,4745.6,5.048]
[1755140791324,0.4642,4746.8,4745.6,5.048]
[1755140791522,0.9605,4746.8,4745.6,5.048]
[1755140791892,0.9605,4746.7,4745.6,5.048]
[1755140792094,0.4642,4746.6,4745.6,5.048]
[1755140792294,0.4642,4746.6,4745.7,3.266]
[1755140793300,0.4642,4746.6,4745.5,5.048]
[1755140794617,0.4963,4746.5,4745.5,5.048]
[1755140794816,0.4642,4746.4,4745.5,5.048]
[1755140795014,0.4642,4746.4,4745.6,3.263]
[1755140796438,0.4963,4746.5,4745.6,3.263]
[1755140796595,0.4963,4746.5,4745.6,5.048]
[1755140796792,2.74666466,4746.5,4745.6,5.048]
[1755140797437,1.78616466,4746.5,4745.6,5.048]
[1755140797613,0.9605,4746.9,4745.6,5.048]
[1755140797826,0.9605,4746.9,4745.7,4.29]
[1755140798345,0.4642,4746.8,4745.8,3.26]
[1755140798629,17.86164662,4746.7,4745.8,3.26]
[1755140799130,0.9605,4746.6,4745.8,3.26]
[1755140799308,1.83258466,4746.5,4745.8,3.26]
[1755140799503,0.9605,4746.4,4745.8,3.26]
[1755140800429,0.4642,4746.3,4745.7,4.29]
[1755140800600,17.36534662,4746.2,4745.8,7.548]
[1755140800797,2.97634313,4746.1,4745.8,7.548]
[1755140801111,2.97634313,4746.1,4745.6,5.048]
[1755140801112,2.97634313,4746.1,4745.9,3.259]
[1755140801306,18.32584662,4746.0,4743.9,5.049]
[1755140801542,17.36534662,4745.1,4743.9,5.049]
[1755140802026,0.4642,4745.0,4743.9,5.049]
[1755140802599,0.4963,4744.9,4743.9,5.049]
[1755140802926,0.4642,4744.8,4744.0,3.259]
[1755140806736,0.4963,4744.7,4744.1,4.29]
[1755140806922,0.4642,4744.6,4744.2,3.256]
[1755140807128,0.4642,4744.6,4744.3,3.255]
[1755140807532,0.9605,4744.5,4744.3,3.255]
[1755140807837,0.9605,4744.4,4743.9,5.049]
[1755140808037,37.65590675,4744.9,4744.0,3.256]
[1755140808354,0.9605,4744.3,4744.0,3.256]
[1755140808515,0.9605,4744.2,4744.0,3.256]
[1755140808717,0.9605,4744.1,4744.0,3.256]
[1755140809036,0.9605,4744.1,4741.8,0.0966]
[1755140809245,14.5,4743.7,4741.9,8.42730439]
[1755140809610,0.9605,4743.6,4741.9,8.42730439]
[1755140810014,0.4642,4743.5,4741.9,8.42730439]
[1755140810238,14.5,4743.4,4742.0,3.255]
[1755140810432,2.50655,4743.3,4741.9,5.17130439]
[1755140810632,2.50655,4743.3,4742.0,3.255]
[1755140810941,0.1046709,4743.8,4741.9,5.17130439]
[1755140810942,0.9605,4743.2,4742.1,3.255]
[1755140811113,14.9711,4743.1,4742.1,3.255]
[1755140812738,0.4711,4743.0,4741.9,5.05]
[1755140812925,0.9329,4743.0,4741.9,5.05]
[1755140813243,0.9329,4743.0,4742.0,3.253]
[1755140813428,15.4329,4742.9,4742.0,3.253]
[1755140813628,2.01439,4742.8,4742.0,3.253]
[1755140814148,0.4711,4742.8,4742.0,3.253]
[1755140814353,14.5,4742.7,4741.9,5.05]
[1755140814649,15.4329,4742.7,4742.1,3.253]
[1755140819666,14.5,4742.7,4742.1,3.253]
[1755140820367,0.4711,4742.6,4741.9,5.05]
[1755140820524,0.9329,4742.6,4741.9,5.05]
[1755140820832,0.9329,4742.6,4742.0,3.253]
[1755140821033,0.19545392,4743.0,4742.0,3.253]
[1755140821034,14.5,4742.1,4742.0,3.253]
[1755140821235,17.17165899,4742.1,4740.2,5.052]
[1755140821436,1.12836899,4742.0,4740.2,5.052]
[1755140821752,0.19546899,4742.0,4740.2,5.052]
[1755140821957,14.5,4741.5,4740.2,5.052]
[1755140822122,0.19546899,4741.4,4740.2,5.052]
[1755140822322,1.4695469,4741.3,4740.2,5.052]
[1755140822528,0.4711,4741.2,4740.3,3.253]
[1755140822726,0.4711,4741.2,4740.2,5.052]
[1755140823054,14.9618,4741.1,4740.3,3.254]
[1755140823352,0.66656899,4741.0,4740.4,4.29]
[1755140823536,2.22940589,4741.0,4740.4,4.29]
[1755140823737,0.66656899,4741.0,4740.4,4.29]
[1755140823939,14.5,4740.9,4740.4,4.29]
[1755140824255,1.12819074,4740.8,4740.5,3.254]
[1755140824460,0.19529074,4740.8,4740.5,3.254]
[1755140824657,0.9329,4740.7,4740.5,3.254]
[1755140824973,15.4329,4740.6,4740.5,3.254]
[1755140825268,15.62819074,4740.6,4740.5,3.254]
[1755140825963,14.69529074,4740.6,4740.5,3.254]
[1755140826166,14.5,4740.6,4740.5,3.254]
[1755140826374,14.69509524,4740.6,4740.5,3.254]
[1755140826667,16.25789476,4740.6,4740.5,3.254]
[1755140826852,17.19079476,4740.6,4740.5,3.254]
[1755140827683,14.69509524,4740.6,4740.5,3.254]
[1755140827847,14.5,4740.6,4740.5,3.254]
[1755140832290,14.69546208,4740.6,4740.5,3.254]
[1755140836382,15.62836208,4740.6,4740.5,3.254]
[1755140836681,15.62836208,4740.6,4740.5,3.255]
[1755140836995,17.19119829,4740.6,4740.5,3.255]
[1755140838373,17.19191097,4740.6,4740.5,3.255]
[1755140839268,14.69617476,4740.6,4740.2,5.052]
[1755140839507,1.12907476,4740.5,4740.3,3.255]
[1755140839714,0.19617476,4740.4,4740.3,3.255]
[1755140839870,1.12907476,4740.4,4740.3,3.255]
[1755140840072,15.74198224,4740.4,4740.3,3.255]
[1755140840798,14.80908224,4740.4,4740.3,3.255]
[1755140841109,14.69617476,4740.4,4740.3,3.255]
[1755140842487,14.69617476,4740.4,4740.3,3.3516]
[1755140842683,0.19617476,4740.4,4740.3,3.3516]
[1755140843200,0.19617476,4740.4,4740.3,3.255]
[1755140843388,0.19617476,4740.4,4740.3,3.3516]
[1755140843706,0.19617476,4742.4,4740.3,3.3516]
[1755140843908,0.19617476,4742.3,4740.4,0.0966]
[1755140844216,0.19617476,4742.2,4740.5,3.255]
[1755140844382,0.19637475,4742.1,4740.6,0.0966]